fUST/lending_fUST_20250226
["ID","MTS","AMOUNT","RATE_DAILY","PERIOD"]
[354580407,1740580235802,-500.0,0.00041899,2]
[354580408,1740580235812,-500.0,0.00041899,2]
[354580409,1740580235822,-500.0,0.00041899,2]
[354580410,1740580235831,-500.0,0.00041899,2]
[354580411,1740580235841,-500.0,0.00041899,2]
[354580412,1740580235851,-500.0,0.00041899,2]
[354580413,1740580235861,-500.0,0.00041899,2]
[354580414,1740580235871,-500.0,0.00041899,2]
[354580415,1740580235883,-500.0,0.00041899,2]
[354580416,1740580235893,-500.0,0.00041899,2]
[354580417,1740580235903,-500.0,0.00041899,2]
[354580418,1740580235913,-500.0,0.00041899,2]
[354580419,1740580235923,-500.0,0.00041899,2]
[354580420,1740580235933,-500.0,0.00041899,2]
[354580421,1740580235943,-500.0,0.00041899,2]
[354580422,1740580235953,-500.0,0.00041899,2]
[354580423,1740580235963,-500.0,0.00041899,2]
[354580424,1740580235973,-500.0,0.00041899,2]
[354580425,1740580235982,-53270.33688963,0.000419,120]
[354580426,1740580236135,-13980.96014222,0.000419,120]
[354580468,1740580238300,-202.94264,0.00035,120]
[354580469,1740580238310,-3116.27611025,0.000419,120]
[354580470,1740580238406,-744.95649222,0.000419,120]
[354580471,1740580238419,-2296.80828469,0.000419,120]
[354580472,1740580238431,-84140.65557875,0.000419,120]
[354580473,1740580238441,-349.9,0.000419,30]
[354580474,1740580238451,-6063.04222052,0.00042,30]
[354580475,1740580238460,-288.78610561,0.000421,10]
[354580476,1740580238470,-1707.9268926,0.000424,120]
[354580477,1740580238479,-500.0,0.00043457,70]
[354580478,1740580238489,-3919.8,0.000435,30]
[354580479,1740580238504,-500.0,0.00043557,101]
[354580480,1740580238523,-500.0,0.00043657,84]
[354580481,1740580238533,-18766.34267002,0.000438,2]
[354580482,1740580238543,-500.0,0.00043857,2]
[354580483,1740580238557,-500.0,0.00043957,2]
[354580484,1740580238566,-500.0,0.00044057,2]
[354580485,1740580238575,-500.0,0.00044157,2]
[354580486,1740580238585,-19603.87691479,0.00044194,2]
[354580487,1740580238597,-500.0,0.00044257,2]
[354580488,1740580238607,-349.9,0.000443,30]
[354580489,1740580238619,-500.0,0.00044357,2]
[354580490,1740580238632,-158.24749335,0.00044827,30]
[354580491,1740580238642,-19603.87691479,0.00044827,7]
[354580492,1740580238653,-12771.38442349,0.00044827,10]
[354580503,1740580240389,-1092.0,0.00044827,10]
[354580504,1740580240400,-1189.25,0.00044827,10]
[354580610,1740580243268,-607.48520223,0.00044827,10]
[354580662,1740580243837,-3943.75728907,0.00044827,10]
[354580664,1740580243847,-166.59,0.000449,30]
[354580666,1740580243857,-5.47678093,0.00045125,120]
[354580669,1740580243869,-157.81040335,0.00045125,120]
[354580672,1740580243880,-192.35754776,0.00045125,120]
[354580675,1740580243890,-500.0,0.00045125,31]
[354580677,1740580243899,-500.0,0.00045125,120]
[354580681,1740580243909,-470.78891012,0.00045125,31]
[354580684,1740580243920,-173.50152971,0.00045125,120]
[354580687,1740580243930,-612.1157789,0.00045126,120]
[354580690,1740580243942,-848.80814613,0.00045126,7]
[354580693,1740580243954,-565.454561,0.00045126,7]
[354580759,1740580246483,-750.57917793,0.00045126,7]
[354580760,1740580246503,-1723.8,0.00045126,7]
[354580761,1740580246516,-8605.726866,0.00045126,7]
[354580762,1740580270975,-151.0,0.00045126,30]
[354580763,1740580271038,-166.6,0.000452,30]
[354580764,1740580271102,-2268.0,0.000452,30]
[354580765,1740580271167,-5522.72,0.000452,30]
[354580766,1740580271234,-388.73303571,0.000455,60]
[354580767,1740580271301,-151.0,0.00045674,30]
[354580768,1740580271370,-3919.8,0.00046,30]
[354580769,1740580271439,-151.0,0.00046222,30]
[354580770,1740580271512,-151.0,0.0004677,30]
[354580771,1740580271585,-656.06034574,0.0004714,120]
[354580772,1740580271659,-151.0,0.00047318,30]
[354580773,1740580271729,-195.96975958,0.00047866,30]
[354580774,1740580271799,-9831.64106025,0.00048398,120]
[354580775,1740580271869,-19584.4124536,0.000488,120]
[354580776,1740580271933,-2268.0,0.000488,30]
[354580777,1740580272000,-5522.72,0.000488,30]
[354580778,1740580272064,-199850.76067575,0.0005,30]
[354580779,1740580272134,-533.66529355,0.0005,120]
[354580780,1740580272215,-820.87071802,0.0005,30]
[354580781,1740580272287,-405.00270734,0.0005,120]
[354580782,1740580272354,-2000.0,0.00052,90]
[354580783,1740580272422,-689.71804633,0.00052055,120]
[354580784,1740580272493,-689.71804633,0.00052055,120]
[354580785,1740580272565,-689.71804633,0.00052055,120]
[354580786,1740580272646,-689.71804633,0.00052055,120]
[354580787,1740580272722,-689.71804633,0.00052055,120]
[354580788,1740580272795,-689.71804633,0.00052055,120]
[354580789,1740580272870,-689.71804633,0.00052055,120]
[354580790,1740580272939,-689.71804633,0.00052055,120]
[354580791,1740580273008,-689.71804633,0.00052055,120]
[354580792,1740580273070,-689.71804633,0.00052055,120]
[354580793,1740580273139,-689.71804633,0.00052055,120]
[354580794,1740580273210,-689.71804633,0.00052055,120]
[354580795,1740580273279,-689.71804633,0.00052055,120]
[354580796,1740580273344,-689.71804633,0.00052055,120]
[354580797,1740580273413,-689.71804633,0.00052055,120]
[354580798,1740580273484,-689.71804633,0.00052055,120]
[354580799,1740580273552,-689.71804633,0.00052055,120]
[354580800,1740580273628,-689.71804633,0.00052055,120]
[354580801,1740580273708,-689.71804633,0.00052055,120]
[354580802,1740580273801,-689.71,0.00052055,120]
[354580803,1740580273872,-1609.3421081,0.00052055,120]
[354580804,1740580273947,-1609.3421081,0.00052055,120]
[354580805,1740580274020,-1609.3421081,0.00052055,120]
[354580806,1740580274097,-1609.3421081,0.00052055,120]
[354580807,1740580274179,-1609.3421081,0.00052055,120]
[354580808,1740580274261,-1609.3421081,0.00052055,120]
[354580809,1740580274341,-1609.3421081,0.00052055,120]
[354580810,1740580274416,-1609.3421081,0.00052055,120]
[354580811,1740580274495,-1609.3421081,0.00052055,120]
[354580812,1740580274570,-1609.3421081,0.00052055,120]
[354580813,1740580274651,-1609.3421081,0.00052055,120]
[354580814,1740580274732,-1609.3421081,0.00052055,120]
[354580815,1740580274810,-264.3921619,0.00052055,120]
[354580816,1740580274887,-264.3921619,0.00052055,120]
[354580817,1740580274968,-264.3921619,0.00052055,120]
[354580818,1740580275044,-264.3921619,0.00052055,120]
[354580819,1740580275124,-264.3921619,0.00052055,120]
[354580820,1740580275196,-264.3921619,0.00052055,120]
[354580821,1740580275268,-264.3921619,0.00052055,120]
[354580822,1740580275344,-264.3921619,0.00052055,120]
[354580823,1740580275419,-264.3921619,0.00052055,120]
[354580824,1740580275498,-264.3921619,0.00052055,120]
[354580825,1740580275575,-264.3921619,0.00052055,120]
[354580826,1740580275663,-264.3921619,0.00052055,120]
[354580827,1740580275739,-264.3921619,0.00052055,120]
[354580828,1740580275814,-264.3921619,0.00052055,120]
[354580829,1740580275889,-264.3921619,0.00052055,120]
[354580830,1740580275963,-264.3921619,0.00052055,120]
[354580831,1740580276040,-264.3921619,0.00052055,120]
[354580832,1740580276103,-264.3921619,0.00052055,120]
[354580833,1740580276190,-264.3921619,0.00052055,120]
[354580834,1740580276264,-264.39,0.00052055,120]
[354580835,1740580276338,-616.91504444,0.00052055,120]
[354580836,1740580276416,-616.91504444,0.00052055,120]
[354580837,1740580276485,-616.91504444,0.00052055,120]
[354580838,1740580276562,-616.91504444,0.00052055,120]
[354580839,1740580276650,-616.91504444,0.00052055,120]
[354580840,1740580276719,-616.91504444,0.00052055,120]
[354580841,1740580276788,-616.91504444,0.00052055,120]
[354580842,1740580276854,-616.91504444,0.00052055,120]
[354580843,1740580276926,-616.91504444,0.00052055,120]
[354580844,1740580276999,-616.91504444,0.00052055,120]
[354580845,1740580277070,-616.91504444,0.00052055,120]
[354580846,1740580277146,-616.91504444,0.00052055,120]
[354580847,1740580277235,-243.99339085,0.00052055,120]
[354580848,1740580277306,-243.99339085,0.00052055,120]
[354580849,1740580277384,-243.99339085,0.00052055,120]
[354580850,1740580277458,-243.99339085,0.00052055,120]
[354580851,1740580277529,-243.99339085,0.00052055,120]
[354580852,1740580277599,-243.99339085,0.00052055,120]
[354580853,1740580277672,-243.99339085,0.00052055,120]
[354580854,1740580277747,-243.99339085,0.00052055,120]
[354580855,1740580277817,-243.99339085,0.00052055,120]
[354580856,1740580277887,-243.99339085,0.00052055,120]
[354580857,1740580277963,-243.99339085,0.00052055,120]
[354580858,1740580278032,-243.99339085,0.00052055,120]
[354580859,1740580278108,-243.99339085,0.00052055,120]
[354580860,1740580278188,-243.99339085,0.00052055,120]
[354580861,1740580278268,-243.99339085,0.00052055,120]
[354580862,1740580278349,-243.99339085,0.00052055,120]
[354580863,1740580278426,-243.99339085,0.00052055,120]
[354580864,1740580278507,-243.99339085,0.00052055,120]
[354580865,1740580278586,-243.99339085,0.00052055,120]
[354580866,1740580278668,-243.99,0.00052055,120]
[354580867,1740580278748,-569.31791198,0.00052055,120]
[354580868,1740580278824,-569.31791198,0.00052055,120]
[354580869,1740580278898,-569.31791198,0.00052055,120]
[354580870,1740580278977,-569.31791198,0.00052055,120]
[354580871,1740580279049,-569.31791198,0.00052055,120]
[354580872,1740580279119,-569.31791198,0.00052055,120]
[354580873,1740580279194,-569.31791198,0.00052055,120]
[354580874,1740580279271,-569.31791198,0.00052055,120]
[354580875,1740580279349,-569.31791198,0.00052055,120]
[354580876,1740580279428,-569.31791198,0.00052055,120]
[354580877,1740580279507,-569.31791198,0.00052055,120]
[354580878,1740580279586,-569.31791198,0.00052055,120]
[354580879,1740580279669,-1609.3421081,0.00052342,120]
[354580880,1740580279747,-616.91504444,0.00052342,120]
[354580881,1740580279822,-569.31791198,0.00052342,120]
[354580882,1740580279896,-1609.3421081,0.00052756,120]
[354580883,1740580279967,-616.91504444,0.00052756,120]
[354580884,1740580280039,-569.31791198,0.00052756,120]
[354580885,1740580280104,-12160.464978,0.00053,30]
[354580886,1740580280178,-349.9,0.00053,30]
[354580887,1740580280248,-1609.3421081,0.0005317,120]
[354580888,1740580280316,-616.91504444,0.0005317,120]
[354580889,1740580280384,-569.31791198,0.0005317,120]
[354580890,1740580280451,-1609.3421081,0.00053585,120]
[354580891,1740580280527,-616.91504444,0.00053585,120]
[354580892,1740580280598,-569.31791198,0.00053585,120]
[354580893,1740580280680,-656.06034574,0.00053859,120]
[354580894,1740580280758,-3919.8,0.000539,30]
[354580895,1740580280839,-2268.0,0.000539,30]
[354580896,1740580280920,-5522.72,0.000539,30]
[354580897,1740580280996,-1609.3421081,0.00053999,120]
[354580898,1740580281072,-616.91504444,0.00053999,120]
[354580899,1740580281148,-569.31791198,0.00053999,120]
[354580900,1740580281229,-2000.0,0.00054,90]
[354580901,1740580281303,-1609.3421081,0.00054413,120]
[354580902,1740580281376,-616.91504444,0.00054413,120]
[354580903,1740580281444,-569.31791198,0.00054413,120]
[354580904,1740580281515,-755.26,0.00054794,120]
[354580905,1740580281579,-500.0,0.00054794,120]
[354580906,1740580281650,-500.0,0.00054794,120]
[354580907,1740580281725,-2130.93,0.00054794,120]
[354580908,1740580281788,-500.0,0.00054794,120]
[354580909,1740580281856,-500.0,0.00054794,120]
[354580910,1740580281920,-756.88,0.00054794,120]
[354580911,1740580281982,-500.0,0.00054794,120]
[354580912,1740580282048,-1758.0,0.00054794,120]
[354580913,1740580282111,-500.0,0.00054794,120]
[354580914,1740580282177,-573.97,0.00054794,120]
[354580915,1740580282240,-500.0,0.00054794,120]
[354580916,1740580282307,-1293.56,0.00054794,120]
[354580917,1740580282385,-538.92,0.00054794,120]
[354580918,1740580282455,-500.0,0.00054794,120]
[354580919,1740580282530,-1059.64,0.00054794,120]
[354580920,1740580282600,-500.0,0.00054794,120]
[354580921,1740580282670,-533.3845628,0.00054794,120]
[354580922,1740580282739,-648.21682043,0.00054794,120]
[354580923,1740580282806,-3370.3,0.00054794,120]
[354580924,1740580282871,-500.0,0.00054794,120]
[354580925,1740580282942,-22791.47,0.00054794,120]
[354580926,1740580283010,-4534.2,0.00054794,120]
[354580927,1740580283076,-500.0,0.00054794,120]
[354580928,1740580283148,-812.31,0.00054794,120]
[354580929,1740580283587,-500.0,0.00054794,120]
[354580930,1740580283657,-798.11,0.00054794,120]
[354580931,1740580283735,-2515.99,0.00054794,120]
[354580932,1740580283815,-595.96,0.00054794,60]
[354580933,1740580283894,-500.0,0.00054794,30]
[354580934,1740580283967,-869.48,0.00054794,120]
[354580935,1740580284037,-500.0,0.00054794,120]
[354580936,1740580284107,-1566.41,0.00054794,120]
[354580937,1740580284181,-500.93917807,0.00054794,120]
[354580938,1740580284255,-513.54263718,0.00054794,120]
[354580939,1740580284325,-500.0,0.00054794,120]
[354580940,1740580284396,-759.42,0.00054794,120]
[354580941,1740580284471,-19077.01,0.00054794,120]
[354580942,1740580284545,-500.0,0.00054794,120]
[354580943,1740580284618,-1097.91,0.00054794,120]
[354580944,1740580284684,-312.4271708,0.00054794,120]
[354580945,1740580284762,-500.0,0.00054794,120]
[354580946,1740580284829,-656.97,0.00054794,120]
[354580947,1740580284903,-500.0,0.00054794,120]
[354580948,1740580284979,-500.0,0.00054794,120]
[354580949,1740580285050,-500.0,0.00054794,120]
[354580950,1740580285119,-1073.63,0.00054794,120]
[354580951,1740580285189,-500.0,0.00054794,120]
[354580952,1740580285272,-9030.67,0.00054794,120]
[354580953,1740580285346,-500.0,0.00054794,120]
[354580954,1740580285429,-1754.86,0.00054794,120]
[354580955,1740580285500,-500.0,0.00054794,120]
[354580956,1740580285573,-822.59,0.00054794,120]
[354580957,1740580285645,-715.41,0.00054794,120]
[354580958,1740580285729,-502.26509993,0.00054794,120]
[354580959,1740580285808,-697.85,0.00054794,120]
[354580960,1740580285881,-500.0,0.00054794,120]
[354580961,1740580285954,-500.0,0.00054794,120]
[354580962,1740580286035,-500.0,0.00054794,120]
[354580963,1740580286115,-500.0,0.00054794,120]
[354580964,1740580286187,-294.81283306,0.00054794,120]
[354580965,1740580286259,-500.0,0.00054794,120]
[354580966,1740580286335,-2328.66,0.00054794,120]
[354580967,1740580286410,-500.0,0.00054794,120]
[354580968,1740580286483,-821.85,0.00054794,120]
[354580969,1740580286552,-502.91,0.00054794,120]
[354580970,1740580286634,-351.34082027,0.00054794,120]
[354580971,1740580286710,-500.0,0.00054794,120]
[354580972,1740580286784,-500.0,0.00054794,120]
[354580973,1740580286850,-500.0,0.00054794,120]
[354580974,1740580286920,-752.5,0.00054794,120]
[354580975,1740580286990,-691.85,0.00054794,120]
[354580976,1740580287060,-1767.84,0.00054794,120]
[354580977,1740580287134,-1669.91,0.00054794,120]
[354580978,1740580287210,-500.0,0.00054794,120]
[354580979,1740580287285,-880.56,0.00054794,120]
[354580980,1740580287365,-253.68973856,0.00054794,30]
[354580981,1740580287443,-500.0,0.00054794,120]
[354580982,1740580287522,-2599.13,0.00054794,120]
[354580983,1740580287595,-334.30585657,0.00054794,120]
[354580984,1740580287669,-2021.07,0.00054794,120]
[354580985,1740580287742,-535.05,0.00054794,120]
[354580986,1740580287813,-501.85,0.00054794,120]
[354580987,1740580287877,-500.0,0.00054794,120]
[354580988,1740580287944,-500.0,0.00054794,120]
[354580989,1740580288015,-545.98,0.00054794,120]
[354580990,1740580288086,-500.0,0.00054794,120]
[354580991,1740580288165,-500.0,0.00054794,120]
[354580992,1740580288240,-500.0,0.00054794,120]
[354580993,1740580288356,-1770.65,0.00054794,120]
[354580994,1740580288427,-4395.48,0.00054794,120]
[354580995,1740580288495,-14800.53,0.00054794,120]
[354580996,1740580288565,-658.69,0.00054794,120]
[354580997,1740580288638,-500.0,0.00054794,120]
[354580998,1740580288711,-500.0,0.00054794,120]
[354580999,1740580288786,-500.0,0.00054794,120]
[354581000,1740580288861,-1036.3,0.00054794,120]
[354581001,1740580288935,-863.39,0.00054794,120]
[354581002,1740580289012,-1288.22,0.00054794,120]
[354581003,1740580289086,-500.0,0.00054794,120]
[354581004,1740580289158,-500.0,0.00054794,120]
[354581005,1740580289230,-4905.74,0.00054794,120]
[354581006,1740580289298,-1557.42,0.00054794,120]
[354581007,1740580289366,-512.66383629,0.00054794,120]
[354581008,1740580289435,-500.0,0.00054794,120]
[354581009,1740580289505,-3013.44,0.00054794,120]
[354581010,1740580289578,-2093.64,0.00054794,120]
[354581011,1740580289650,-553.74,0.00054794,120]
[354581012,1740580289726,-500.0,0.00054794,120]
[354581013,1740580289795,-500.0,0.00054794,120]
[354581014,1740580289866,-500.0,0.00054794,120]
[354581015,1740580289935,-500.0,0.00054794,120]
[354581016,1740580290005,-500.0,0.00054794,120]
[354581017,1740580290079,-500.0,0.00054794,120]
[354581018,1740580290147,-1847.08,0.00054794,120]
[354581019,1740580290217,-2995.29,0.00054794,120]
[354581020,1740580290280,-500.0,0.00054794,120]
[354581021,1740580290350,-878.54,0.00054794,120]
[354581022,1740580290427,-500.0,0.00054794,120]
[354581023,1740580290502,-6152.07,0.00054794,120]
[354581024,1740580290577,-500.0,0.00054794,120]
[354581025,1740580290651,-634.32,0.00054794,120]
[354581026,1740580290724,-760.57,0.00054794,120]
[354581027,1740580290796,-2779.31,0.00054794,120]
[354581028,1740580290870,-861.07,0.00054794,120]
[354581029,1740580290942,-1058.22,0.00054794,120]
[354581030,1740580291015,-1650.62,0.00054794,120]
[354581031,1740580291087,-1067.15,0.00054794,120]
[354581032,1740580291163,-500.0,0.00054794,120]
[354581033,1740580291244,-500.0,0.00054794,120]
[354581034,1740580291317,-2131.56,0.00054794,120]
[354581035,1740580291386,-520.67,0.00054794,120]
[354581036,1740580291456,-1097.51,0.00054794,120]
[354581037,1740580291523,-500.0,0.00054794,120]
[354581038,1740580291595,-500.0,0.00054794,120]
[354581039,1740580291665,-1169.47,0.00054794,120]
[354581040,1740580291734,-962.58,0.00054794,120]
[354581041,1740580291801,-1172.67,0.00054794,120]
[354581042,1740580291867,-500.0,0.00054794,120]
[354581043,1740580291939,-885.16,0.00054794,120]
[354581044,1740580292014,-4042.67,0.00054794,120]
[354581045,1740580292088,-16452.14,0.00054794,120]
[354581046,1740580292161,-500.0,0.00054794,120]
[354581047,1740580292238,-1629.11,0.00054794,120]
[354581048,1740580292308,-1577.6,0.00054794,120]
[354581049,1740580292380,-1349.01,0.00054794,120]
[354581050,1740580292451,-419.1977187,0.00054794,30]
[354581051,1740580292525,-1000.0,0.00054794,120]
[354581052,1740580292590,-500.0,0.00054794,120]
[354581053,1740580292662,-500.0,0.00054794,120]
[354581054,1740580292740,-500.0,0.00054794,120]
[354581055,1740580292822,-1725.58,0.00054794,120]
[354581056,1740580292894,-500.0,0.00054794,120]
[354581057,1740580292961,-2320.19,0.00054794,120]
[354581058,1740580293030,-500.0,0.00054794,120]
[354581059,1740580293100,-170.59416875,0.00054794,120]
[354581060,1740580293174,-1380.1,0.00054794,120]
[354581061,1740580293250,-500.0,0.00054794,120]
[354581062,1740580293322,-500.0,0.00054794,120]
[354581063,1740580293400,-500.0,0.00054794,120]
[354581064,1740580293481,-10920.74,0.00054794,120]
[354581065,1740580293553,-500.0,0.00054794,120]
[354581066,1740580293628,-7146.14,0.00054794,120]
[354581067,1740580293705,-501.04189899,0.00054794,120]
[354581068,1740580293780,-1609.3421081,0.00054828,120]
[354581069,1740580293856,-616.91504444,0.00054828,120]
[354581070,1740580293930,-569.31791198,0.00054828,120]
[354581071,1740580294002,-2000.0,0.00055,120]
[354581072,1740580294072,-9153.31688678,0.00055,60]
[354581073,1740580294144,-1609.34,0.00055242,120]
[354581074,1740580294215,-616.91,0.00055242,120]
[354581075,1740580294280,-569.31,0.00055242,120]
[354581076,1740580294347,-689.91,0.00055342,120]
[354581077,1740580294414,-500.0,0.00055342,120]
[354581078,1740580294485,-841.46,0.00055342,120]
[354581079,1740580294559,-4089.66,0.00055342,120]
[354581080,1740580294634,-500.0,0.00055342,120]
[354581081,1740580294704,-2546.7,0.00055342,120]
[354581082,1740580294773,-1286.43,0.00055342,120]
[354581083,1740580294838,-786.34,0.00055342,30]
[354581084,1740580294908,-3147.16,0.00055342,120]
[354581085,1740580294979,-838.0,0.00055342,120]
[354581086,1740580295045,-500.0,0.00055342,120]
[354581087,1740580295116,-1547.26,0.00055342,120]
[354581088,1740580295310,-500.0,0.00055342,120]
[354581089,1740580295380,-2660.56,0.00055342,120]
[354581090,1740580295448,-500.0,0.00055342,120]
[354581091,1740580295517,-500.0,0.00055342,120]
[354581092,1740580295585,-500.0,0.00055342,120]
[354581093,1740580295659,-500.0,0.00055342,120]
[354581094,1740580295727,-587.06,0.00055342,120]
[354581095,1740580295796,-500.0,0.00055342,120]
[354581096,1740580295863,-674.16,0.00055342,120]
[354581097,1740580295932,-1022.06,0.00055342,120]
[354581098,1740580296000,-500.0,0.00055342,120]
[354581099,1740580296071,-1683.74,0.00055342,120]
[354581100,1740580296142,-500.0,0.00055342,120]
[354581101,1740580296210,-500.0,0.00055342,120]
[354581102,1740580296280,-500.0,0.00055342,120]
[354581103,1740580296346,-500.0,0.00055342,120]
[354581104,1740580296418,-500.0,0.00055342,120]
[354581105,1740580296489,-561.89,0.00055342,120]
[354581106,1740580296558,-584.03,0.00055342,120]
[354581107,1740580296635,-3412.47,0.00055342,120]
[354581108,1740580296708,-613.39,0.00055342,120]
[354581109,1740580296786,-500.0,0.00055342,120]
[354581110,1740580296864,-755.26,0.00055342,120]
[354581111,1740580296942,-500.0,0.00055342,120]
[354581112,1740580297017,-500.0,0.00055342,120]
[354581113,1740580297088,-2130.93,0.00055342,120]
[354581114,1740580297158,-500.0,0.00055342,120]
[354581115,1740580297233,-500.0,0.00055342,120]
[354581116,1740580297304,-756.88,0.00055342,120]
[354581117,1740580297375,-500.0,0.00055342,120]
[354581118,1740580297448,-1758.0,0.00055342,120]
[354581119,1740580297522,-500.0,0.00055342,120]
[354581120,1740580297597,-573.97,0.00055342,120]
[354581121,1740580297680,-500.0,0.00055342,120]
[354581122,1740580297754,-1293.56,0.00055342,120]
[354581123,1740580297820,-538.92,0.00055342,120]
[354581124,1740580297890,-301.73661624,0.00055342,120]
[354581125,1740580297961,-1059.64,0.00055342,120]
[354581126,1740580298030,-500.0,0.00055342,120]
[354581127,1740580298095,-3370.3,0.00055342,120]
[354581128,1740580298161,-500.0,0.00055342,120]
[354581129,1740580298234,-22791.47,0.00055342,120]
[354581130,1740580298302,-4534.2,0.00055342,120]
[354581131,1740580298368,-500.0,0.00055342,120]
[354581132,1740580298440,-812.31,0.00055342,120]
[354581133,1740580298509,-500.0,0.00055342,120]
[354581134,1740580298586,-798.11,0.00055342,120]
[354581135,1740580298660,-2515.99,0.00055342,120]
[354581136,1740580298738,-595.96,0.00055342,60]
[354581137,1740580298810,-500.0,0.00055342,30]
[354581138,1740580298881,-869.48,0.00055342,120]
[354581139,1740580298951,-500.0,0.00055342,120]
[354581140,1740580299018,-1566.41,0.00055342,120]
[354581141,1740580299090,-500.0,0.00055342,120]
[354581142,1740580299163,-759.42,0.00055342,120]
[354581143,1740580299236,-500.0,0.00055342,120]
[354581144,1740580299307,-1097.91,0.00055342,120]
[354581145,1740580299379,-500.0,0.00055342,120]
[354581146,1740580299450,-656.97,0.00055342,120]
[354581147,1740580299522,-500.0,0.00055342,120]
[354581148,1740580299594,-500.0,0.00055342,120]
[354581149,1740580299666,-500.0,0.00055342,120]
[354581150,1740580299738,-1073.63,0.00055342,120]
[354581151,1740580299806,-500.0,0.00055342,120]
[354581152,1740580299880,-9030.67,0.00055342,120]
[354581153,1740580299951,-500.0,0.00055342,120]
[354581154,1740580300020,-1754.86,0.00055342,120]
[354581155,1740580300085,-500.0,0.00055342,120]
[354581156,1740580300153,-822.59,0.00055342,120]
[354581157,1740580300218,-715.41,0.00055342,120]
[354581158,1740580300282,-697.85,0.00055342,120]
[354581159,1740580300348,-500.0,0.00055342,120]
[354581160,1740580300407,-500.0,0.00055342,120]
[354581161,1740580300478,-500.0,0.00055342,120]
[354581162,1740580300547,-500.0,0.00055342,120]
[354581163,1740580300619,-500.0,0.00055342,120]
[354581164,1740580300694,-2328.66,0.00055342,120]
[354581165,1740580300760,-505.14221418,0.00055342,120]
[354581166,1740580300830,-821.85,0.00055342,120]
[354581167,1740580300899,-502.91,0.00055342,120]
[354581168,1740580300965,-501.70601291,0.00055342,120]
[354581169,1740580301033,-370.91963421,0.00055342,120]
[354581170,1740580301301,-500.0,0.00055342,120]
[354581171,1740580301371,-752.5,0.00055342,120]
[354581172,1740580301442,-691.85,0.00055342,120]
[354581173,1740580301514,-1767.84,0.00055342,120]
[354581174,1740580301585,-1669.91,0.00055342,120]
[354581175,1740580301656,-500.0,0.00055342,120]
[354581176,1740580301730,-880.56,0.00055342,120]
[354581177,1740580301801,-500.0,0.00055342,120]
[354581178,1740580301871,-2599.13,0.00055342,120]
[354581179,1740580301941,-2021.07,0.00055342,120]
[354581180,1740580302006,-535.05,0.00055342,120]
[354581181,1740580302078,-501.85,0.00055342,120]
[354581182,1740580302151,-500.0,0.00055342,120]
[354581183,1740580302221,-500.0,0.00055342,120]
[354581184,1740580302289,-545.98,0.00055342,120]
[354581185,1740580302354,-500.0,0.00055342,120]
[354581186,1740580302421,-500.0,0.00055342,120]
[354581187,1740580302490,-500.0,0.00055342,120]
[354581188,1740580302560,-1770.65,0.00055342,120]
[354581189,1740580302630,-4395.48,0.00055342,120]
[354581190,1740580302703,-14800.53,0.00055342,120]
[354581191,1740580302768,-658.69,0.00055342,120]
[354581192,1740580302833,-461.31720248,0.00055342,120]
[354581193,1740580302898,-500.0,0.00055342,120]
[354581194,1740580302964,-1036.3,0.00055342,120]
[354581195,1740580303029,-863.39,0.00055342,120]
[354581196,1740580303094,-1288.22,0.00055342,120]
[354581197,1740580303160,-500.0,0.00055342,120]
[354581198,1740580303235,-500.0,0.00055342,120]